[Event "Riga Chess Open 2020"]
[Site "Riga"]
[Date "2020.08.24"]
[Round "1.1"]
[White "Tabors, Emils"]
[Black "Krivonosov, Oleg"]
[Result "0-1"]
[ECO "D36"]
[WhiteElo "1527"]
[BlackElo "2381"]
[Annotator "ChessBase"]
[PlyCount "118"]
[EventDate "2020.08.29"]
[EventType "swiss"]
[EventCountry "LAT"]
[SourceTitle "playchess.com"]
[Source "ChessBase"]
[SourceQuality "1"]
[TimeControl "5400+30"]

1. d4 {[%emt 0:00:00]} d5 {[%emt 0:00:00]} 2. c4 {[%emt 0:00:00]} e6 {[%emt 0:00:00]} 3. Nc3 {[%emt 0:00:00]} Nf6 {[%emt 0:00:00]} 4. cxd5 {[%emt 0:00:00]} exd5 {[%emt 0:00:00]} 5. Bg5 {[%emt 0:00:00]} c6 {[%emt 0:00:05]} 6. Qc2 {[%emt 0:00:01]} Be7 {[%emt 0:00:17]} 7. Nf3 {[%emt 0:00:09]} g6 {[%emt 0:00:21]} 8. e3 {[%emt 0:00:47]} Bf5 {[%emt 0:00:11]} 9. Bd3 {[%emt 0:04:54]} Bxd3 {[%emt 0:00:14]} 10. Qxd3 {[%emt 0:00:06]} Nbd7 {[%emt 0:00:07]} 11. O-O {[%emt 0:00:09]} O-O {[%emt 0:00:10]} 12. Rab1 {[%emt 0:01:04]} a5 {[%emt 0:00:11]} 13. a3 {[%emt 0:00:28]} Re8 {[%emt 0:00:14]} 14. b4 {[%emt 0:00:20]} axb4 {[%emt 0:00:08]} 15. axb4 {[%emt 0:00:04]} b5 {[%emt 0:00:11]} 16. Bxf6 {[%emt 0:07:17]} Bxf6 {[%emt 0:00:19]} 17. e4 {[%emt 0:00:36]} Nb6 {[%emt 0:00:41]} 18. Rfc1 {[%emt 0:06:21]} Ra3 {[%emt 0:04:39]} 19. Qc2 {[%emt 0:04:42]} dxe4 {[%emt 0:03:51]} 20. Nxe4 {[%emt 0:00:50]} Nc4 {[%emt 0:00:28]} 21. Nxf6+ {[%emt 0:03:45]} Qxf6 {[%emt 0:00:09]} 22. Ra1 {[%emt 0:00:26]} Rxa1 {[%emt 0:15:51]} 23. Rxa1 {[%emt 0:00:08]} Qd6 {[%emt 0:02:18]} 24. Qc3 {[%emt 0:03:29]} Qd5 {[%emt 0:01:40]} 25. h3 {[%emt 0:03:15]} Re2 {[%emt 0:05:12]} 26. Ne5 {[%emt 0:11:18]} Nxe5 {[%emt 0:01:15]} 27. dxe5 {[%emt 0:00:20]} Qxe5 {[%emt 0:00:26]} 28. Qxe5 {[%emt 0:00:18]} Rxe5 {[%emt 0:00:05]} 29. Ra8+ {[%emt 0:01:11]} Kg7 {[%emt 0:00:13]} 30. Rc8 {[%emt 0:00:04]} Re1+ {[%emt 0:00:18]} 31. Kh2 {[%emt 0:00:06]} Rc1 {[%emt 0:00:04]} 32. g3 {[%emt 0:01:28]} Rc4 {[%emt 0:00:17]} 33. Rc7 {[%emt 0:00:44]} g5 {[%emt 0:00:22]} 34. g4 {[%emt 0:02:09]} Rc3 {[%emt 0:00:58]} 35. Kg2 {[%emt 0:00:22]} Kg6 {[%emt 0:00:11]} 36. Kh2 {[%emt 0:01:37]} f6 {[%emt 0:00:14]} 37. Kg2 {[%emt 0:02:01]} h5 {[%emt 0:00:28]} 38. gxh5+ {[%emt 0:03:51]} Kxh5 {[%emt 0:00:06]} 39. Rc8 {[%emt 0:00:33]} Kg6 {[%emt 0:00:48]} 40. Rc7 {[%emt 0:02:05]} Kf5 {[%emt 0:00:22]} 41. Rc8 {[%emt 0:02:30]} Rc4 {[%emt 0:00:18]} 42. Kg3 {[%emt 0:01:40]} Ke6 {[%emt 0:00:10]} 43. Rc7 {[%emt 0:02:25]} Kf5 {[%emt 0:04:28]} 44. Rc8 {[%emt 0:00:49]} Rc3+ {[%emt 0:00:11]} 45. Kg2 {[%emt 0:01:00]} Kf4 {[%emt 0:00:19]} 46. Rc7 {[%emt 0:02:00]} f5 {[%emt 0:00:07]} 47. Rc8 {[%emt 0:00:29]} Rc2 {[%emt 0:00:06]} 48. Rg8 {[%emt 0:03:58]} Rc4 {[%emt 0:00:48]} 49. Rg6 {[%emt 0:02:17]} Rxb4 {[%emt 0:03:06]} 50. Rxc6 {[%emt 0:00:05]} Rc4 {[%emt 0:00:23]} 51. Rb6 {[%emt 0:00:09]} b4 {[%emt 0:00:47]} 52. Rb8 {[%emt 0:00:58]} Ke4 {[%emt 0:00:30]} 53. Rb5 {[%emt 0:01:46]} Rd4 {[%emt 0:00:41]} 54. Rb8 {[%emt 0:06:15]} Kd3 {[%emt 0:00:36]} 55. Rb5 {[%emt 0:00:14]} Rf4 {[%emt 0:00:16]} 56. Rb8 {[%emt 0:00:47]} Kc3 {[%emt 0:00:14]} 57. Rc8+ {[%emt 0:00:10]} Rc4 {[%emt 0:00:07]} 58. Rg8 {[%emt 0:00:49]} b3 {[%emt 0:00:21]} 59. Rxg5 {[%emt 0:00:34]} b2 {[%emt 0:00:07]} 0-1

[Event "Riga Chess Open 2020"]
[Site "Riga"]
[Date "2020.08.24"]
[Round "1.2"]
[White "Stabulnieks, Klavs"]
[Black "Omuls, Peteris"]
[Result "1-0"]
[ECO "D36"]
[WhiteElo "2214"]
[BlackElo "1437"]
[Annotator "ChessBase"]
[PlyCount "69"]
[EventDate "2020.08.29"]
[EventType "swiss"]
[EventCountry "LAT"]
[SourceTitle "playchess.com"]
[Source "ChessBase"]
[SourceQuality "1"]
[TimeControl "5400+30"]

1. d4 {[%emt 0:00:00]} d5 {[%emt 0:00:00]} 2. c4 {[%emt 0:00:00]} e6 {[%emt 0:00:00]} 3. Nc3 {[%emt 0:00:00]} Nf6 {[%emt 0:00:01]} 4. cxd5 {[%emt 0:00:00]} exd5 {[%emt 0:00:17]} 5. Bg5 {[%emt 0:00:00]} c6 {[%emt 0:00:59]} 6. Qc2 {[%emt 0:00:02]} Be7 {[%emt 0:00:32]} 7. e3 {[%emt 0:00:06]} O-O {[%emt 0:00:34]} 8. Bd3 {[%emt 0:00:07]} Nbd7 {[%emt 0:00:18]} 9. h3 {[%emt 0:00:11]} h6 {[%emt 0:00:54]} 10. Bf4 {[%emt 0:00:12]} Re8 {[%emt 0:01:07]} 11. Nf3 {[%emt 0:00:46]} Nf8 {[%emt 0:03:05]} 12. O-O-O {[%emt 0:00:43]} Be6 {[%emt 0:01:04]} 13. Kb1 {[%emt 0:00:18]} a5 {[%emt 0:01:04]} 14. g4 {[%emt 0:01:34]} N6h7 {[%emt 0:02:13]} 15. Na4 {[%emt 0:00:54]} Rc8 {[%emt 0:08:59]} 16. Rc1 {[%emt 0:01:25]} b6 {[%emt 0:01:57]} 17. Ba6 {[%emt 0:00:57]} Ra8 {[%emt 0:01:30]} 18. Bb7 {[%emt 0:00:19]} Ra7 {[%emt 0:00:38]} 19. Bxc6 {[%emt 0:00:40]} Bd7 {[%emt 0:00:32]} 20. Qb3 {[%emt 0:00:45]} Bxc6 {[%emt 0:00:59]} 21. Rxc6 {[%emt 0:00:06]} Qd7 {[%emt 0:03:20]} 22. Ne5 {[%emt 0:00:32]} Qd8 {[%emt 0:01:48]} 23. Nxb6 {[%emt 0:01:49]} Rb7 {[%emt 0:01:19]} 24. Qxd5 {[%emt 0:02:42]} Qxd5 {[%emt 0:00:33]} 25. Nxd5 {[%emt 0:00:05]} Bh4 {[%emt 0:01:23]} 26. f3 {[%emt 0:01:08]} Ne6 {[%emt 0:01:17]} 27. Rhc1 {[%emt 0:00:42]} Nhg5 {[%emt 0:02:00]} 28. Bxg5 {[%emt 0:03:42]} Bxg5 {[%emt 0:01:08]} 29. f4 {[%emt 0:00:58]} Be7 {[%emt 0:00:28]} 30. Rc8 {[%emt 0:00:11]} Rxc8 {[%emt 0:01:01]} 31. Rxc8+ {[%emt 0:00:10]} Bf8 {[%emt 0:00:44]} 32. f5 {[%emt 0:00:23]} Ng5 {[%emt 0:01:00]} 33. Nc6 {[%emt 0:01:31]} Nh7 {[%emt 0:01:46]} 34. Nde7+ {[%emt 0:03:47]} Kh8 {[%emt 0:00:24]} 35. Ng6+ {[%emt 0:00:08]} 1-0

[Event "Riga Chess Open 2020"]
[Site "Riga"]
[Date "2020.08.24"]
[Round "1.3"]
[White "Zajakins, Artjoms"]
[Black "Tokranovs, Dmitrijs"]
[Result "0-1"]
[ECO "A59"]
[WhiteElo "1371"]
[BlackElo "2212"]
[Annotator "ChessBase"]
[PlyCount "84"]
[EventDate "2020.08.29"]
[EventType "swiss"]
[EventCountry "LAT"]
[SourceTitle "playchess.com"]
[Source "ChessBase"]
[SourceQuality "1"]
[TimeControl "5400+30"]

1. d4 {[%emt 0:00:00]} Nf6 {[%emt 0:00:00]} 2. c4 {[%emt 0:00:00]} c5 {[%emt 0:00:00]} 3. d5 {[%emt 0:00:00]} b5 {[%emt 0:00:00]} 4. cxb5 {[%emt 0:00:00]} a6 {[%emt 0:00:00]} 5. bxa6 {[%emt 0:00:30]} d6 {[%emt 0:00:00]} 6. Nc3 {[%emt 0:01:28]} Bxa6 {[%emt 0:00:00]} 7. e4 {[%emt 0:01:12]} Bxf1 {[%emt 0:00:02]} 8. Kxf1 {[%emt 0:00:11]} g6 {[%emt 0:00:04]} 9. g3 {[%emt 0:01:54]} Bg7 {[%emt 0:00:05]} 10. Kg2 {[%emt 0:02:28]} O-O {[%emt 0:00:05]} 11. Nge2 {[%emt 0:02:57]} Nbd7 {[%emt 0:00:09]} 12. a4 {[%emt 0:03:56]} Ra6 {[%emt 0:00:04]} 13. Qc2 {[%emt 0:04:59]} Qa8 {[%emt 0:00:08]} 14. Nb5 {[%emt 0:06:25]} Rc8 {[%emt 0:00:27]} 15. Nec3 {[%emt 0:07:05]} c4 {[%emt 0:01:09]} 16. Be3 {[%emt 0:05:30]} Nc5 {[%emt 0:01:14]} 17. Bxc5 {[%emt 0:05:17]} Rxc5 {[%emt 0:00:04]} 18. b3 {[%emt 0:02:27]} cxb3 {[%emt 0:06:35]} 19. Qxb3 {[%emt 0:01:22]} e6 {[%emt 0:01:25]} 20. Rad1 {[%emt 0:08:26]} exd5 {[%emt 0:00:35]} 21. exd5 {[%emt 0:00:29]} Rc8 {[%emt 0:02:26]} 22. Rhe1 {[%emt 0:05:14]} Nd7 {[%emt 0:00:22]} 23. Ne4 {[%emt 0:04:33]} Bf8 {[%emt 0:04:34]} 24. Qb2 {[%emt 0:07:19]} Qb8 {[%emt 0:03:07]} 25. Rb1 {[%emt 0:03:38]} Rxa4 {[%emt 0:01:09]} 26. Nbc3 {[%emt 0:02:36]} Qxb2 {[%emt 0:03:02]} 27. Rxb2 {[%emt 0:00:10]} Ra7 {[%emt 0:03:03]} 28. Nb5 {[%emt 0:03:09]} Ra6 {[%emt 0:00:03]} 29. Rbe2 {[%emt 0:03:24]} h6 {[%emt 0:01:05]} 30. g4 {[%emt 0:03:20]} Rb6 {[%emt 0:01:42]} 31. Nd4 {[%emt 0:01:44]} Ne5 {[%emt 0:00:47]} 32. h3 {[%emt 0:01:05]} Nd3 {[%emt 0:00:40]} 33. Nf6+ {[%emt 0:01:50]} Kg7 {[%emt 0:00:06]} 34. Ne8+ {[%emt 0:01:39]} Kh8 {[%emt 0:00:03]} 35. Re3 {[%emt 0:01:16]} Nxe1+ {[%emt 0:00:05]} 36. Rxe1 {[%emt 0:00:09]} Rbb8 {[%emt 0:00:25]} 37. Nf6 {[%emt 0:00:18]} Bg7 {[%emt 0:00:02]} 38. Nc6 {[%emt 0:00:53]} Bxf6 {[%emt 0:00:05]} 39. Nxb8 {[%emt 0:00:11]} Rxb8 {[%emt 0:00:01]} 40. f4 {[%emt 0:00:56]} Rb2+ {[%emt 0:00:03]} 41. Kg3 {[%emt 0:00:24]} Rd2 {[%emt 0:00:04]} 42. Re8+ {[%emt 0:00:31]} Kg7 {[%emt 0:00:03]} 0-1

[Event "Riga Chess Open 2020"]
[Site "Riga"]
[Date "2020.08.24"]
[Round "1.4"]
[White "Katishonok, Nikolaj"]
[Black "Hermanis, Atis"]
[Result "1-0"]
[ECO "A20"]
[WhiteElo "2118"]
[BlackElo "1361"]
[Annotator "ChessBase"]
[PlyCount "121"]
[EventDate "2020.08.29"]
[EventType "swiss"]
[EventCountry "LAT"]
[SourceTitle "playchess.com"]
[Source "ChessBase"]
[SourceQuality "1"]
[TimeControl "5400+30"]

1. a3 {[%emt 0:00:00]} e5 {[%emt 0:00:00]} 2. c4 {[%emt 0:00:00]} Nf6 {[%emt 0:00:00]} 3. g3 {[%emt 0:00:00]} d6 {[%emt 0:01:13]} 4. Bg2 {[%emt 0:00:00]} Be7 {[%emt 0:00:46]} 5. Nc3 {[%emt 0:00:38]} c6 {[%emt 0:00:22]} 6. d4 {[%emt 0:00:42]} Be6 {[%emt 0:04:05]} 7. b3 {[%emt 0:04:25]} Qb6 {[%emt 0:03:56]} 8. Nf3 {[%emt 0:00:50]} exd4 {[%emt 0:03:03]} 9. Nxd4 {[%emt 0:00:17]} O-O {[%emt 0:00:47]} 10. O-O {[%emt 0:00:38]} d5 {[%emt 0:03:39]} 11. cxd5 {[%emt 0:01:35]} Nxd5 {[%emt 0:07:18]} 12. Na4 {[%emt 0:03:38]} Qd8 {[%emt 0:03:29]} 13. Nxe6 {[%emt 0:00:07]} fxe6 {[%emt 0:00:14]} 14. e4 {[%emt 0:01:40]} Nb6 {[%emt 0:07:55]} 15. Nxb6 {[%emt 0:07:19]} Qxb6 {[%emt 0:02:04]} 16. Be3 {[%emt 0:01:32]} Bc5 {[%emt 0:00:23]} 17. Bxc5 {[%emt 0:00:37]} Qxc5 {[%emt 0:00:03]} 18. b4 {[%emt 0:00:18]} Qe7 {[%emt 0:00:43]} 19. Qb3 {[%emt 0:02:44]} Kh8 {[%emt 0:01:43]} 20. b5 {[%emt 0:05:58]} e5 {[%emt 0:00:53]} 21. a4 {[%emt 0:04:12]} h6 {[%emt 0:08:02]} 22. Rfd1 {[%emt 0:05:19]} cxb5 {[%emt 0:01:47]} 23. axb5 {[%emt 0:06:56]} Nd7 {[%emt 0:11:45]} 24. Rd5 {[%emt 0:09:04]} Nf6 {[%emt 0:06:31]} 25. Rd2 {[%emt 0:00:14]} Qc5 {[%emt 0:01:10]} 26. h3 {[%emt 0:02:43]} Rad8 {[%emt 0:03:55]} 27. Rc2 {[%emt 0:01:57]} Qb6 {[%emt 0:12:31]} 28. Kh2 {[%emt 0:01:28]} Qd4 {[%emt 0:01:58]} 29. Re1 {[%emt 0:03:34]} a5 {[%emt 0:03:51]} 30. Re3 {[%emt 0:06:57]} a4 {[%emt 0:02:44]} 31. Qa2 {[%emt 0:00:47]} Qb4 {[%emt 0:00:50]} 32. Rb2 {[%emt 0:03:14]} Qa5 {[%emt 0:00:29]} 33. Qa3 {[%emt 0:00:30]} Rf7 {[%emt 0:02:25]} 34. Qc5 {[%emt 0:00:44]} Re8 {[%emt 0:01:03]} 35. Qb4 {[%emt 0:01:29]} Ra8 {[%emt 0:00:51]} 36. Ra3 {[%emt 0:01:22]} b6 {[%emt 0:00:36]} 37. Qc4 {[%emt 0:00:37]} Rff8 {[%emt 0:00:51]} 38. Rba2 {[%emt 0:05:13]} Qe1 {[%emt 0:00:54]} 39. Rxa4 {[%emt 0:00:25]} Rxa4 {[%emt 0:00:20]} 40. Qxa4 {[%emt 0:00:08]} Nd7 {[%emt 0:00:19]} 41. Qa7 {[%emt 0:02:20]} Nc5 {[%emt 0:01:16]} 42. Qxb6 {[%emt 0:07:11]} Rxf2 {[%emt 0:00:58]} 43. Rxf2 {[%emt 0:01:04]} Qxf2 {[%emt 0:00:02]} 44. Qb8+ {[%emt 0:00:13]} Kh7 {[%emt 0:00:01]} 45. Qxe5 {[%emt 0:00:07]} Nd3 {[%emt 0:01:02]} 46. Qf5+ {[%emt 0:00:46]} Qxf5 {[%emt 0:00:02]} 47. exf5 {[%emt 0:00:05]} Ne5 {[%emt 0:00:22]} 48. b6 {[%emt 0:00:19]} Nd7 {[%emt 0:00:21]} 49. b7 {[%emt 0:00:13]} Kg8 {[%emt 0:00:08]} 50. g4 {[%emt 0:00:57]} Kf7 {[%emt 0:00:17]} 51. Kg3 {[%emt 0:00:11]} Ke7 {[%emt 0:00:38]} 52. Kh4 {[%emt 0:01:19]} Kf6 {[%emt 0:01:24]} 53. Kh5 {[%emt 0:03:04]} Nb8 {[%emt 0:00:31]} 54. Bf1 {[%emt 0:00:19]} Nc6 {[%emt 0:00:35]} 55. Bb5 {[%emt 0:00:27]} Nb8 {[%emt 0:00:07]} 56. h4 {[%emt 0:01:13]} Kf7 {[%emt 0:00:23]} 57. g5 {[%emt 0:00:21]} hxg5 {[%emt 0:00:16]} 58. Kxg5 {[%emt 0:00:58]} Kg8 {[%emt 0:01:07]} 59. Kg6 {[%emt 0:00:46]} Kh8 {[%emt 0:01:02]} 60. f6 {[%emt 0:01:16]} gxf6 {[%emt 0:01:20]} 61. Kxf6 {[%emt 0:00:35]} 1-0

[Event "Riga Chess Open 2020"]
[Site "Riga"]
[Date "2020.08.25"]
[Round "2.1"]
[White "Krivonosov, Oleg"]
[Black "Vernuks, Vjaceslavs"]
[Result "1-0"]
[ECO "E90"]
[WhiteElo "2381"]
[BlackElo "1709"]
[Annotator "ChessBase"]
[PlyCount "51"]
[EventDate "2020.08.29"]
[EventType "swiss"]
[EventCountry "LAT"]
[SourceTitle "playchess.com"]
[Source "ChessBase"]
[SourceQuality "1"]
[TimeControl "5400+30"]

1. Nf3 {[%emt 0:00:00]} Nf6 {[%emt 0:00:00]} 2. c4 {[%emt 0:00:00]} g6 {[%emt 0:00:12]} 3. Nc3 {[%emt 0:00:00]} Bg7 {[%emt 0:00:15]} 4. e4 {[%emt 0:00:09]} d6 {[%emt 0:00:25]} 5. d4 {[%emt 0:00:13]} e5 {[%emt 0:00:28]} 6. dxe5 {[%emt 0:00:32]} dxe5 {[%emt 0:00:55]} 7. Qxd8+ {[%emt 0:00:28]} Kxd8 {[%emt 0:00:12]} 8. Nxe5 {[%emt 0:00:23]} Ke8 {[%emt 0:00:27]} 9. f4 {[%emt 0:01:36]} c6 {[%emt 0:01:15]} 10. Be3 {[%emt 0:01:11]} Nbd7 {[%emt 0:01:22]} 11. Nxd7 {[%emt 0:01:37]} Bxd7 {[%emt 0:00:36]} 12. Be2 {[%emt 0:01:18]} Ng4 {[%emt 0:00:51]} 13. Bg1 {[%emt 0:00:30]} b6 {[%emt 0:05:33]} 14. O-O-O {[%emt 0:00:59]} Ke7 {[%emt 0:02:14]} 15. Rxd7+ {[%emt 0:01:17]} Kxd7 {[%emt 0:00:20]} 16. Bxg4+ {[%emt 0:00:05]} Ke7 {[%emt 0:00:44]} 17. e5 {[%emt 0:02:01]} f5 {[%emt 0:01:49]} 18. Bf3 {[%emt 0:00:44]} Rac8 {[%emt 0:00:40]} 19. Be3 {[%emt 0:01:01]} Rhd8 {[%emt 0:00:40]} 20. Kc2 {[%emt 0:00:23]} Ke6 {[%emt 0:01:08]} 21. Ne2 {[%emt 0:00:44]} c5 {[%emt 0:00:28]} 22. Nc3 {[%emt 0:00:49]} h5 {[%emt 0:00:39]} 23. h4 {[%emt 0:01:13]} Rd7 {[%emt 0:00:17]} 24. Rh3 {[%emt 0:00:27]} Bh8 {[%emt 0:01:05]} 25. Bd5+ {[%emt 0:00:21]} Ke7 {[%emt 0:00:14]} 26. Rg3 {[%emt 0:00:14]} 1-0

[Event "Riga Chess Open 2020"]
[Site "Riga"]
[Date "2020.08.25"]
[Round "2.2"]
[White "Raag, Ardi"]
[Black "Stabulnieks, Klavs"]
[Result "1/2-1/2"]
[ECO "B12"]
[WhiteElo "1724"]
[BlackElo "2214"]
[Annotator "ChessBase"]
[PlyCount "215"]
[EventDate "2020.08.29"]
[EventType "swiss"]
[EventCountry "LAT"]
[SourceTitle "playchess.com"]
[Source "ChessBase"]
[SourceQuality "1"]
[TimeControl "5400+30"]

1. e4 {[%emt 0:00:00]} c6 {[%emt 0:00:00]} 2. d4 {[%emt 0:00:00]} d5 {[%emt 0:00:00]} 3. e5 {[%emt 0:00:00]} Bf5 {[%emt 0:00:00]} 4. h4 {[%emt 0:00:02]} h5 {[%emt 0:00:00]} 5. Bd3 {[%emt 0:00:09]} Bxd3 {[%emt 0:00:36]} 6. Qxd3 {[%emt 0:00:07]} e6 {[%emt 0:00:05]} 7. Nf3 {[%emt 0:00:47]} Qa5+ {[%emt 0:00:40]} 8. c3 {[%emt 0:00:16]} Qa6 {[%emt 0:00:05]} 9. Qxa6 {[%emt 0:01:11]} Nxa6 {[%emt 0:00:06]} 10. O-O {[%emt 0:01:58]} Ne7 {[%emt 0:02:55]} 11. Na3 {[%emt 0:05:15]} Nc8 {[%emt 0:03:55]} 12. Nc2 {[%emt 0:00:58]} c5 {[%emt 0:01:00]} 13. b3 {[%emt 0:06:40]} Nb6 {[%emt 0:03:34]} 14. Ba3 {[%emt 0:14:47]} Rc8 {[%emt 0:01:28]} 15. Rac1 {[%emt 0:03:25]} Be7 {[%emt 0:11:48]} 16. Rfd1 {[%emt 0:06:51]} O-O {[%emt 0:02:30]} 17. Nce1 {[%emt 0:03:06]} Rc7 {[%emt 0:02:09]} 18. g3 {[%emt 0:04:06]} Rfc8 {[%emt 0:00:29]} 19. Ng2 {[%emt 0:09:14]} Bf8 {[%emt 0:03:36]} 20. Bb2 {[%emt 0:03:29]} Nd7 {[%emt 0:12:08]} 21. c4 {[%emt 0:09:03]} dxc4 {[%emt 0:07:18]} 22. Rxc4 {[%emt 0:03:16]} Nb6 {[%emt 0:02:23]} 23. Rcc1 {[%emt 0:03:00]} c4 {[%emt 0:01:38]} 24. bxc4 {[%emt 0:02:59]} Nxc4 {[%emt 0:00:07]} 25. Rb1 {[%emt 0:00:36]} Nb4 {[%emt 0:01:00]} 26. a4 {[%emt 0:04:30]} Nd5 {[%emt 0:01:08]} 27. Nd2 {[%emt 0:01:52]} b6 {[%emt 0:01:56]} 28. Nxc4 {[%emt 0:01:50]} Rxc4 {[%emt 0:00:07]} 29. Ra1 {[%emt 0:01:22]} a5 {[%emt 0:03:09]} 30. Ne3 {[%emt 0:01:51]} Nxe3 {[%emt 0:01:23]} 31. fxe3 {[%emt 0:00:01]} Rb4 {[%emt 0:01:55]} 32. Rdc1 {[%emt 0:00:51]} Rxc1+ {[%emt 0:03:45]} 33. Bxc1 {[%emt 0:00:01]} Rc4 {[%emt 0:02:08]} 34. Kf1 {[%emt 0:01:27]} Bb4 {[%emt 0:01:59]} 35. Ba3 {[%emt 0:01:08]} Kh7 {[%emt 0:02:26]} 36. Bxb4 {[%emt 0:00:45]} Rxb4 {[%emt 0:00:55]} 37. Ke2 {[%emt 0:00:28]} g5 {[%emt 0:03:52]} 38. hxg5 {[%emt 0:01:09]} Kg6 {[%emt 0:00:06]} 39. Kf3 {[%emt 0:00:26]} Kxg5 {[%emt 0:00:20]} 40. Ra3 {[%emt 0:00:52]} Rb1 {[%emt 0:01:56]} 41. Ra2 {[%emt 0:00:33]} Kg6 {[%emt 0:03:11]} 42. Ra3 {[%emt 0:01:36]} Kg7 {[%emt 0:01:05]} 43. Kf4 {[%emt 0:01:27]} Rf1+ {[%emt 0:01:10]} 44. Kg5 {[%emt 0:00:05]} Rf3 {[%emt 0:03:43]} 45. g4 {[%emt 0:00:54]} hxg4 {[%emt 0:00:07]} 46. Kxg4 {[%emt 0:00:03]} Rf1 {[%emt 0:00:09]} 47. Rb3 {[%emt 0:02:32]} Ra1 {[%emt 0:00:08]} 48. Rxb6 {[%emt 0:00:04]} Rxa4 {[%emt 0:00:07]} 49. Kf3 {[%emt 0:00:05]} Ra1 {[%emt 0:00:52]} 50. Ke2 {[%emt 0:00:14]} a4 {[%emt 0:02:07]} 51. Kd2 {[%emt 0:00:55]} a3 {[%emt 0:01:54]} 52. Ra6 {[%emt 0:00:15]} Kg6 {[%emt 0:03:41]} 53. d5 {[%emt 0:01:52]} a2 {[%emt 0:00:37]} 54. d6 {[%emt 0:02:35]} Rh1 {[%emt 0:00:24]} 55. d7 {[%emt 0:00:11]} Rh8 {[%emt 0:00:11]} 56. Rxa2 {[%emt 0:00:56]} Kf5 {[%emt 0:02:28]} 57. Ra5 {[%emt 0:01:35]} Rd8 {[%emt 0:00:11]} 58. Ke2 {[%emt 0:00:09]} Ke4 {[%emt 0:00:17]} 59. Ra4+ {[%emt 0:01:28]} Kxe5 {[%emt 0:00:06]} 60. Rd4 {[%emt 0:00:26]} Kf6 {[%emt 0:00:19]} 61. Kf3 {[%emt 0:00:18]} Ke7 {[%emt 0:00:11]} 62. Ra4 {[%emt 0:00:17]} Rxd7 {[%emt 0:00:17]} 63. Ra5 {[%emt 0:00:20]} Rb7 {[%emt 0:01:18]} 64. Ra6 {[%emt 0:00:09]} Kf6 {[%emt 0:00:07]} 65. Ra5 {[%emt 0:00:06]} Rb3 {[%emt 0:00:49]} 66. Kf4 {[%emt 0:00:34]} Rb1 {[%emt 0:00:42]} 67. Ra8 {[%emt 0:01:40]} Rb4+ {[%emt 0:00:13]} 68. Kf3 {[%emt 0:00:49]} Kf5 {[%emt 0:00:38]} 69. Ra5+ {[%emt 0:00:17]} e5 {[%emt 0:00:24]} 70. Rc5 {[%emt 0:00:24]} f6 {[%emt 0:00:29]} 71. Ra5 {[%emt 0:00:13]} Rh4 {[%emt 0:00:40]} 72. Kg3 {[%emt 0:00:49]} Rh8 {[%emt 0:01:58]} 73. Ra4 {[%emt 0:00:10]} Rg8+ {[%emt 0:00:30]} 74. Kf3 {[%emt 0:00:12]} Rg1 {[%emt 0:00:23]} 75. e4+ {[%emt 0:01:29]} Kg5 {[%emt 0:01:15]} 76. Ra8 {[%emt 0:00:06]} Rf1+ {[%emt 0:00:07]} 77. Ke3 {[%emt 0:01:03]} Re1+ {[%emt 0:00:28]} 78. Kf3 {[%emt 0:00:18]} Kg6 {[%emt 0:00:06]} 79. Ra6 {[%emt 0:00:54]} Kf7 {[%emt 0:00:32]} 80. Rb6 {[%emt 0:00:31]} Ra1 {[%emt 0:00:33]} 81. Rb3 {[%emt 0:00:24]} Kg6 {[%emt 0:00:33]} 82. Rb4 {[%emt 0:01:23]} Kg5 {[%emt 0:00:25]} 83. Rb6 {[%emt 0:00:27]} Rf1+ {[%emt 0:01:42]} 84. Ke3 {[%emt 0:00:25]} Kg4 {[%emt 0:00:16]} 85. Ra6 {[%emt 0:00:37]} Re1+ {[%emt 0:01:57]} 86. Kd3 {[%emt 0:00:08]} Kg5 {[%emt 0:00:14]} 87. Rb6 {[%emt 0:00:14]} Ra1 {[%emt 0:02:13]} 88. Ke3 {[%emt 0:00:32]} Ra3+ {[%emt 0:00:07]} 89. Ke2 {[%emt 0:00:17]} Kf4 {[%emt 0:00:23]} 90. Rxf6+ {[%emt 0:00:21]} Kxe4 {[%emt 0:00:05]} 91. Rb6 {[%emt 0:00:48]} Ra2+ {[%emt 0:00:05]} 92. Ke1 {[%emt 0:00:10]} Kf3 {[%emt 0:00:46]} 93. Rb3+ {[%emt 0:00:12]} Kf4 {[%emt 0:00:05]} 94. Rc3 {[%emt 0:00:08]} e4 {[%emt 0:00:07]} 95. Rb3 {[%emt 0:00:07]} Ra4 {[%emt 0:01:03]} 96. Ke2 {[%emt 0:00:19]} Ra1 {[%emt 0:00:42]} 97. Rc3 {[%emt 0:00:14]} Ra2+ {[%emt 0:00:44]} 98. Ke1 {[%emt 0:00:05]} Ke5 {[%emt 0:00:05]} 99. Rb3 {[%emt 0:00:09]} Kd4 {[%emt 0:00:44]} 100. Rh3 {[%emt 0:00:08]} Rg2 {[%emt 0:00:25]} 101. Ra3 {[%emt 0:00:12]} Ke5 {[%emt 0:00:47]} 102. Rb3 {[%emt 0:00:08]} Kf4 {[%emt 0:00:04]} 103. Ra3 {[%emt 0:00:08]} Rg3 {[%emt 0:01:41]} 104. Rxg3 {[%emt 0:00:05]} Kxg3 {[%emt 0:00:04]} 105. Ke2 {[%emt 0:00:03]} Kf4 {[%emt 0:00:04]} 106. Kf2 {[%emt 0:00:04]} e3+ {[%emt 0:00:03]} 107. Ke2 {[%emt 0:00:07]} Ke4 {[%emt 0:00:05]} 108. Ke1 {[%emt 0:00:03]} 1/2-1/2